fUSD/lending_fUSD_20260601
["ID","MTS","AMOUNT","RATE_DAILY","PERIOD"]
[423708006,1780321852000,-500.0,0.00013699,2]
[423708003,1780321852000,-500.0,0.00013699,2]
[423708002,1780321852000,-559.02731371,0.00013699,2]
[423708001,1780321852000,-500.0,0.00013699,2]
[423708004,1780321852000,-500.0,0.00013699,2]
[423708005,1780321852000,-500.0,0.00013699,2]
[423708007,1780321852000,-500.0,0.00013699,2]
[423708008,1780321852000,-500.0,0.00013699,2]
[423708025,1780321852000,-400.0,0.00013879,2]
[423708009,1780321852000,-500.0,0.00013699,2]
[423708010,1780321852000,-500.0,0.00013699,2]
[423708016,1780321852000,-500.0,0.00013699,2]
[423708013,1780321852000,-500.0,0.00013699,2]
[423708011,1780321852000,-500.0,0.00013699,2]
[423708015,1780321852000,-500.0,0.00013699,2]
[423708014,1780321852000,-500.0,0.00013699,2]
[423708018,1780321852000,-300.0,0.00013699,2]
[423708017,1780321852000,-500.0,0.00013699,2]
[423708019,1780321852000,-500.0,0.00013699,2]
[423708020,1780321852000,-2000.0,0.00013809,2]
[423708021,1780321852000,-166.66,0.00013836,2]
[423708012,1780321852000,-500.0,0.00013699,2]
[423708061,1780321852000,-2000.0,0.00014039,2]
[423708051,1780321852000,-2000.0,0.00014039,2]
[423708103,1780321852000,-2000.0,0.00014521,2]
[423708077,1780321852000,-2000.0,0.00014039,2]
[423708080,1780321852000,-166.66,0.0001411,2]
[423708079,1780321852000,-1744.77,0.00014039,2]
[423708081,1780321852000,-166.66,0.00014247,2]
[423708082,1780321852000,-2000.0,0.00014337,2]
[423708086,1780321852000,-500.0,0.0001435,2]
[423708095,1780321852000,-4609.0,0.00014475,2]
[423708087,1780321852000,-500.0,0.0001435,2]
[423708090,1780321852000,-30754.06684234,0.00014389,2]
[423708089,1780321852000,-166.66,0.00014384,2]
[423708092,1780321852000,-500.0,0.0001443,2]
[423708078,1780321852000,-2000.0,0.00014039,2]
[423708094,1780321852000,-201.38584137,0.0001443,2]
[423708093,1780321852000,-500.0,0.0001443,2]
[423708097,1780321852000,-615.77,0.0001452,2]
[423708096,1780321852000,-694.85660698,0.0001449,2]
[423708100,1780321852000,-2000.0,0.00014521,2]
[423708098,1780321852000,-544.17,0.0001452,2]
[423708099,1780321852000,-2000.0,0.00014521,2]
[423708101,1780321852000,-2000.0,0.00014521,2]
[423708102,1780321852000,-2000.0,0.00014521,2]
[423708105,1780321852000,-2000.0,0.00014521,2]
[423708104,1780321852000,-2000.0,0.00014521,2]
[423708058,1780321852000,-2000.0,0.00014039,2]
[423708091,1780321852000,-500.0,0.00014429,2]
[423708084,1780321852000,-500.0,0.0001435,2]
[423708088,1780321852000,-835.188,0.0001435,2]
[423708083,1780321852000,-500.0,0.0001435,2]
[423708057,1780321852000,-2000.0,0.00014039,2]
[423708055,1780321852000,-2000.0,0.00014039,2]
[423708050,1780321852000,-2000.0,0.00014039,2]
[423708076,1780321852000,-2000.0,0.00014039,2]
[423708056,1780321852000,-2000.0,0.00014039,2]
[423708052,1780321852000,-2000.0,0.00014039,2]
[423708060,1780321852000,-2000.0,0.00014039,2]
[423708054,1780321852000,-2000.0,0.00014039,2]
[423708059,1780321852000,-2000.0,0.00014039,2]
[423708062,1780321852000,-2000.0,0.00014039,2]
[423708064,1780321852000,-2000.0,0.00014039,2]
[423708065,1780321852000,-2000.0,0.00014039,2]
[423708053,1780321852000,-2000.0,0.00014039,2]
[423708067,1780321852000,-987.45,0.00014039,2]
[423708074,1780321852000,-2000.0,0.00014039,2]
[423708066,1780321852000,-2000.0,0.00014039,2]
[423708085,1780321852000,-500.0,0.0001435,2]
[423708069,1780321852000,-2000.0,0.00014039,2]
[423708070,1780321852000,-2000.0,0.00014039,2]
[423708075,1780321852000,-2000.0,0.00014039,2]
[423708071,1780321852000,-2000.0,0.00014039,2]
[423708063,1780321852000,-2000.0,0.00014039,2]
[423708072,1780321852000,-2000.0,0.00014039,2]
[423708068,1780321852000,-2000.0,0.00014039,2]
[423708073,1780321852000,-2000.0,0.00014039,2]
[423708132,1780321853000,-615.77,0.00014998,2]
[423708137,1780321853000,-1916.41,0.00014999,2]
[423708131,1780321853000,-164.030051,0.00014997,2]
[423708134,1780321853000,-500.0,0.00014998,2]
[423708133,1780321853000,-544.17,0.00014998,2]
[423708143,1780321853000,-560.73,0.00014999,2]
[423708142,1780321853000,-560.73,0.00014999,2]
[423708135,1780321853000,-1916.41,0.00014999,2]
[423708141,1780321853000,-560.73,0.00014999,2]
[423708148,1780321853000,-560.73,0.00014999,2]
[423708138,1780321853000,-1916.41,0.00014999,2]
[423708136,1780321853000,-1916.41,0.00014999,2]
[423708140,1780321853000,-560.73,0.00014999,2]
[423708144,1780321853000,-560.73,0.00014999,2]
[423708147,1780321853000,-560.73,0.00014999,2]
[423708154,1780321853000,-615.77,0.00014999,2]
[423708156,1780321853000,-615.77,0.00014999,2]
[423708151,1780321853000,-560.73,0.00014999,2]
[423708155,1780321853000,-615.77,0.00014999,2]
[423708127,1780321853000,-544.17,0.00014944,2]
[423708139,1780321853000,-1916.6022324,0.00014999,2]
[423708126,1780321853000,-615.77,0.00014944,2]
[423708118,1780321853000,-615.77,0.00014942,2]
[423708128,1780321853000,-500.0,0.00014944,2]
[423708149,1780321853000,-560.73,0.00014999,2]
[423708107,1780321853000,-445.22,0.00014682,2]
[423708106,1780321853000,-246.86,0.00014521,2]
[423708109,1780321853000,-39128.09126434,0.0001485,2]
[423708110,1780321853000,-1916.41,0.00014899,2]
[423708111,1780321853000,-5517.09003004,0.00014899,2]
[423708108,1780321853000,-1152.0,0.00014701,2]
[423708117,1780321853000,-5312.2652265,0.00014935,2]
[423708112,1780321853000,-198.6950226,0.00014899,2]
[423708113,1780321853000,-10000.0,0.000149,2]
[423708116,1780321853000,-354.74978975,0.00014935,2]
[423708115,1780321853000,-30754.06684234,0.000149,2]
[423708114,1780321853000,-490.32864871,0.000149,2]
[423708120,1780321853000,-500.0,0.00014942,2]
[423708121,1780321853000,-180369.8544674,0.00014943,2]
[423708124,1780321853000,-500.0,0.00014944,2]
[423708129,1780321853000,-393301.1855558,0.00014945,2]
[423708122,1780321853000,-560.73,0.00014944,2]
[423708123,1780321853000,-560.73,0.00014944,2]
[423708119,1780321853000,-544.17,0.00014942,2]
[423708130,1780321853000,-200.70074596,0.0001497,2]
[423708125,1780321853000,-204.15869689,0.00014944,2]
[423708152,1780321853000,-560.73,0.00014999,2]
[423708146,1780321853000,-560.73,0.00014999,2]
[423708145,1780321853000,-560.73,0.00014999,2]
[423708180,1780321853000,-500.0,0.00014999,2]
[423708182,1780321853000,-500.0,0.00014999,2]
[423708183,1780321853000,-500.0,0.00014999,2]
[423708191,1780321853000,-500.0,0.00014999,2]
[423708184,1780321853000,-500.0,0.00014999,2]
[423708181,1780321853000,-500.0,0.00014999,2]
[423708186,1780321853000,-500.0,0.00014999,2]
[423708187,1780321853000,-500.0,0.00014999,2]
[423708185,1780321853000,-500.0,0.00014999,2]
[423708176,1780321853000,-544.17,0.00014999,2]
[423708189,1780321853000,-500.0,0.00014999,2]
[423708190,1780321853000,-500.0,0.00014999,2]
[423708198,1780321853000,-781.56714637,0.00014999,2]
[423708197,1780321853000,-300.0,0.00014999,2]
[423708195,1780321853000,-500.0,0.00014999,2]
[423708196,1780321853000,-285.78148871,0.00014999,2]
[423708193,1780321853000,-500.0,0.00014999,2]
[423708194,1780321853000,-500.0,0.00014999,2]
[423708200,1780321853000,-300.0,0.00014999,2]
[423708201,1780321853000,-477026.87845401,0.00015,2]
[423708188,1780321853000,-500.0,0.00014999,2]
[423708178,1780321853000,-500.0,0.00014999,2]
[423708192,1780321853000,-500.0,0.00014999,2]
[423708179,1780321853000,-500.0,0.00014999,2]
[423708150,1780321853000,-560.73,0.00014999,2]
[423708158,1780321853000,-615.77,0.00014999,2]
[423708168,1780321853000,-544.17,0.00014999,2]
[423708169,1780321853000,-544.17,0.00014999,2]
[423708157,1780321853000,-615.77,0.00014999,2]
[423708175,1780321853000,-544.17,0.00014999,2]
[423708166,1780321853000,-544.17,0.00014999,2]
[423708199,1780321853000,-300.0,0.00014999,2]
[423708164,1780321853000,-615.77,0.00014999,2]
[423708161,1780321853000,-615.77,0.00014999,2]
[423708165,1780321853000,-615.98889731,0.00014999,2]
[423708160,1780321853000,-615.77,0.00014999,2]
[423708159,1780321853000,-615.77,0.00014999,2]
[423708162,1780321853000,-615.77,0.00014999,2]
[423708177,1780321853000,-544.22030719,0.00014999,2]
[423708174,1780321853000,-544.17,0.00014999,2]
[423708173,1780321853000,-544.17,0.00014999,2]
[423708172,1780321853000,-544.17,0.00014999,2]
[423708153,1780321853000,-560.96895958,0.00014999,2]
[423708170,1780321853000,-544.17,0.00014999,2]
[423708171,1780321853000,-544.17,0.00014999,2]
[423708167,1780321853000,-544.17,0.00014999,2]
[423708163,1780321853000,-615.77,0.00014999,2]
[423708208,1780321854000,-7174.90000001,0.00015,2]
[423708207,1780321854000,-773.28489584,0.00015,2]
[423708209,1780321854000,-1174309.82032894,0.00015,2]
[423708206,1780321854000,-553.91174646,0.00015,2]
[423708205,1780321854000,-1522.9423015,0.00015,2]
[423708204,1780321854000,-9036.24632798,0.00015,2]
[423708203,1780321854000,-215.34467174,0.00014848,2]
[423708202,1780321854000,-1040.56971036,0.00014848,2]
[423708210,1780321854000,-782421.92784438,0.00015,2]
[423708212,1780321902000,-4836.79701696,0.00010199,2]
[423708213,1780321955000,-300.0,0.00010198,2]
[423708214,1780321989000,172.2655633,0.0001,3]
[423708216,1780322009000,-1230.09181537,0.00010199,2]
[423708217,1780322062000,-2120.184,9.995e-05,2]
[423708218,1780322063000,177.48573188,0.0001,3]
[423708219,1780322108000,-174.124,9.995e-05,2]
[423708221,1780322148000,152.0,0.00029916,120]
[423708222,1780322161000,-175.51264233,9.995e-05,2]
[423708225,1780322215000,-175.51264232,9.997e-05,2]
[423708226,1780322268000,-545.6756404,0.0001,2]
[423708227,1780322282000,-151.0,0.00010335,7]
[423708228,1780322321000,-250.0,0.00010097,2]
[423708231,1780322759000,196.8,0.00030082,120]
[423708232,1780322866000,-1696.148,9.995e-05,2]
[423708233,1780322920000,-174.124,9.995e-05,2]
[423708234,1780322941000,2000.0,0.00030136,120]
[423708235,1780322954000,-175.51264232,9.995e-05,2]
[423708236,1780322954000,-224.04813486,0.00010029,2]
[423708238,1780322973000,-75.95186514,0.00010029,2]
[423708239,1780322975000,172.2655633,0.0001,3]
[423708240,1780322976000,179.48,0.00030137,120]
[423708242,1780323009000,189.0,0.00030136,120]
[423708243,1780323026000,-1200.0,0.00010029,2]
[423708252,1780323032000,-300.0,0.00010029,2]
[423708263,1780323032000,-500.0,0.00010198,2]
[423708264,1780323032000,-500.0,0.00010198,2]
[423708262,1780323032000,-365.85901739,0.00010198,2]
[423708266,1780323032000,-556.50051839,0.00010198,2]
[423708265,1780323032000,-500.0,0.00010198,2]
[423708258,1780323032000,-14044.8481,0.00010099,2]
[423708257,1780323032000,-5000.0,0.00010099,2]
[423708256,1780323032000,-1230.09181537,0.0001003,2]
[423708259,1780323032000,-694.85660702,0.00010099,2]
[423708260,1780323032000,-466.38921614,0.00010099,2]
[423708255,1780323032000,-9701.70157718,0.0001003,2]
[423708253,1780323032000,-115.14346827,0.0001003,2]
[423708254,1780323032000,-494.97495455,0.0001003,2]
[423708261,1780323032000,-1111.11,0.00010101,2]
[423708267,1780323032000,-500.0,0.00010198,2]
[423708276,1780323032000,-298581.1049055,0.00010199,2]
[423708270,1780323032000,-500.0,0.00010198,2]
[423708283,1780323032000,-1197.0,0.00010199,2]
[423708282,1780323032000,-8467.46429254,0.00010199,2]
[423708284,1780323032000,-2266.90729915,0.00010199,2]
[423708281,1780323032000,-446.99375,0.00010199,2]
[423708268,1780323032000,-231.45878386,0.00010198,2]
[423708279,1780323032000,-488.44485,0.00010199,2]
[423708277,1780323032000,-636.53145006,0.00010199,2]
[423708280,1780323032000,-452.34929037,0.00010199,2]
[423708274,1780323032000,-500.0,0.00010198,2]
[423708275,1780323032000,-500.0,0.00010199,2]
[423708269,1780323032000,-500.0,0.00010198,2]
[423708271,1780323032000,-500.0,0.00010198,2]
[423708272,1780323032000,-500.0,0.00010198,2]
[423708273,1780323032000,-150.0,0.00010198,2]
[423708278,1780323032000,-310.55827694,0.00010199,2]
[423708366,1780323040000,-808.55672583,0.00010099,2]
[423708362,1780323040000,-465.94709527,0.00010099,2]
[423708365,1780323040000,-695.6995,0.00010099,2]
[423708364,1780323040000,-2398.69789682,0.00010099,2]
[423708363,1780323040000,-776.66894413,0.00010099,2]
[423708367,1780323040000,-2145.0,0.00010099,2]
[423708361,1780323040000,-1743.23564721,0.00010099,2]
[423708369,1780323040000,-608.65863722,0.00010099,2]
[423708371,1780323040000,-3351.70983754,0.00010099,2]
[423708370,1780323040000,-637.50353872,0.00010099,2]
[423708372,1780323040000,-644.20590704,0.00010099,2]
[423708373,1780323040000,-5720.0,0.00010099,2]
[423708374,1780323040000,-959.29088975,0.00010099,2]
[423708375,1780323040000,-535.24104825,0.00010099,2]
[423708368,1780323040000,-298.42766103,0.00010099,2]
[423708396,1780323041000,-1680.0,0.00011032,2]
[423708411,1780323041000,-587.0,0.00012135,2]
[423708415,1780323041000,-500.0,0.00012281,2]
[423708413,1780323041000,-160.0,0.00012248,2]
[423708403,1780323041000,-164.55,0.00011403,2]
[423708402,1780323041000,-2000.0,0.00011283,2]
[423708399,1780323041000,-1111.11,0.00011111,2]
[423708406,1780323041000,-500.0,0.00012007,2]
[423708409,1780323041000,-2351.0,0.00012135,2]
[423708416,1780323041000,-196.8,0.00012329,2]
[423708407,1780323041000,-215.65015035,0.00012127,2]
[423708394,1780323041000,-250.0,0.00010995,2]
[423708405,1780323041000,-169.96,0.00011691,2]
[423708417,1780323041000,-500.0,0.00012329,2]
[423708419,1780323041000,-2000.0,0.00012694,2]
[423708421,1780323041000,-159.86,0.00012929,2]
[423708420,1780323041000,-356.18,0.00012882,2]
[423708422,1780323041000,-159.86,0.00013201,2]
[423708404,1780323041000,-356.18,0.00011451,2]
[423708397,1780323041000,-420.0,0.00011032,2]
[423708391,1780323041000,-500.0,0.00010958,4]
[423708395,1780323041000,-150.0,0.00011029,2]
[423708376,1780323041000,-2488.11649926,0.00010099,2]
[423708377,1780323041000,-5118.8234575,0.00010099,2]
[423708378,1780323041000,-448.674,0.00010099,2]
[423708379,1780323041000,-330.64778821,0.00010099,2]
[423708380,1780323041000,-1469824.89492622,0.00010099,2]
[423708381,1780323041000,-33240.6068,0.00010299,2]
[423708382,1780323041000,-2000.0,0.00010299,2]
[423708383,1780323041000,-1.0,0.00010335,7]
[423708393,1780323041000,-4548.42,0.00010991,2]
[423708385,1780323041000,-1111.11,0.00010354,2]
[423708386,1780323041000,-1111.11,0.00010606,2]
[423708387,1780323041000,-1111.11,0.00010859,2]
[423708389,1780323041000,-500.0,0.00010958,2]
[423708423,1780323041000,-250.0,0.00013252,2]
[423708390,1780323041000,-500.0,0.00010958,3]
[423708392,1780323041000,-150.0,0.00010959,2]
[423708388,1780323041000,-10824.06275681,0.000109,2]
[423708398,1780323041000,-161.64,0.00011109,2]
[423708384,1780323041000,-152.0,0.00010335,7]
[423708418,1780323041000,-500.0,0.00012555,2]
[423708451,1780323041000,-500.0,0.00013698,2]
[423708425,1780323041000,-823.0,0.00013348,2]
[423708446,1780323041000,-631.64150049,0.00013698,2]
[423708449,1780323041000,-500.0,0.00013698,2]
[423708453,1780323041000,-500.0,0.00013698,2]
[423708448,1780323041000,-500.0,0.00013698,2]
[423708452,1780323041000,-500.0,0.00013698,2]
[423708455,1780323041000,-500.0,0.00013698,2]
[423708454,1780323041000,-500.0,0.00013698,2]
[423708465,1780323041000,-1916.41,0.00013698,2]
[423708447,1780323041000,-475.61764834,0.00013698,2]
[423708456,1780323041000,-500.0,0.00013698,2]
[423708458,1780323041000,-500.0,0.00013698,2]
[423708460,1780323041000,-500.0,0.00013698,2]
[423708462,1780323041000,-505.56076516,0.00013698,2]
[423708459,1780323041000,-500.0,0.00013698,2]
[423708463,1780323041000,-1916.41,0.00013698,2]
[423708461,1780323041000,-163.43660373,0.00013698,2]
[423708466,1780323041000,-1916.41,0.00013698,2]
[423708424,1780323041000,-500.0,0.00013345,2]
[423708457,1780323041000,-500.0,0.00013698,2]
[423708450,1780323041000,-500.0,0.00013698,2]
[423708464,1780323041000,-1916.41,0.00013698,2]
[423708445,1780323041000,-500.0,0.00013698,2]
[423708429,1780323041000,-150.0,0.00013391,2]
[423708443,1780323041000,-500.0,0.00013698,2]
[423708428,1780323041000,-150.0,0.00013391,2]
[423708427,1780323041000,-150.0,0.00013391,2]
[423708441,1780323041000,-500.0,0.00013698,2]
[423708440,1780323041000,-500.0,0.00013698,2]
[423708439,1780323041000,-500.0,0.00013698,2]
[423708432,1780323041000,-150.0,0.00013391,2]
[423708433,1780323041000,-150.0,0.00013391,2]
[423708426,1780323041000,-3292.0,0.00013349,2]
[423708437,1780323041000,-507.7240582,0.00013698,2]
[423708436,1780323041000,-169.96,0.0001362,2]
[423708438,1780323041000,-500.0,0.00013698,2]
[423708430,1780323041000,-150.0,0.00013391,2]
[423708434,1780323041000,-10824.06275681,0.00013414,2]
[423708431,1780323041000,-150.0,0.00013391,2]
[423708435,1780323041000,-159.86,0.00013474,2]
[423708444,1780323041000,-500.0,0.00013698,2]
[423708442,1780323041000,-500.0,0.00013698,2]
[423708508,1780323042000,-500.0,0.00013698,2]
[423708506,1780323042000,-500.0,0.00013698,2]
[423708505,1780323042000,-500.0,0.00013698,2]
[423708504,1780323042000,-500.0,0.00013698,2]
[423708502,1780323042000,-544.17,0.00013698,2]
[423708503,1780323042000,-500.0,0.00013698,2]
[423708513,1780323042000,-500.0,0.00013698,2]
[423708496,1780323042000,-544.17,0.00013698,2]
[423708497,1780323042000,-544.17,0.00013698,2]
[423708507,1780323042000,-500.0,0.00013698,2]
[423708495,1780323042000,-544.17,0.00013698,2]
[423708514,1780323042000,-500.0,0.00013698,2]
[423708510,1780323042000,-500.0,0.00013698,2]
[423708519,1780323042000,-560.73,0.00013698,2]
[423708512,1780323042000,-500.0,0.00013698,2]
[423708511,1780323042000,-500.0,0.00013698,2]
[423708515,1780323042000,-560.73,0.00013698,2]
[423708518,1780323042000,-560.73,0.00013698,2]
[423708517,1780323042000,-560.73,0.00013698,2]
[423708520,1780323042000,-560.73,0.00013698,2]
[423708526,1780323042000,-500.0,0.00013698,2]
[423708516,1780323042000,-560.73,0.00013698,2]
[423708521,1780323042000,-560.73,0.00013698,2]
[423708522,1780323042000,-560.73,0.00013698,2]
[423708524,1780323042000,-500.0,0.00013698,2]
[423708499,1780323042000,-544.17,0.00013698,2]
[423708509,1780323042000,-500.0,0.00013698,2]
[423708500,1780323042000,-544.17,0.00013698,2]
[423708475,1780323042000,-500.0,0.00013698,2]
[423708491,1780323042000,-615.77,0.00013698,2]
[423708467,1780323042000,-1916.41,0.00013698,2]
[423708468,1780323042000,-1916.41,0.00013698,2]
[423708470,1780323042000,-1916.41,0.00013698,2]
[423708472,1780323042000,-500.0,0.00013698,2]
[423708477,1780323042000,-500.0,0.00013698,2]
[423708469,1780323042000,-1916.41,0.00013698,2]
[423708471,1780323042000,-500.0,0.00013698,2]
[423708473,1780323042000,-500.0,0.00013698,2]
[423708474,1780323042000,-500.0,0.00013698,2]
[423708525,1780323042000,-500.0,0.00013698,2]
[423708476,1780323042000,-554.38885746,0.00013698,2]
[423708479,1780323042000,-500.0,0.00013698,2]
[423708478,1780323042000,-484.95949939,0.00013698,2]
[423708498,1780323042000,-544.17,0.00013698,2]
[423708480,1780323042000,-500.0,0.00013698,2]
[423708481,1780323042000,-500.0,0.00013698,2]
[423708487,1780323042000,-615.77,0.00013698,2]
[423708485,1780323042000,-500.0,0.00013698,2]
[423708482,1780323042000,-500.0,0.00013698,2]
[423708483,1780323042000,-500.0,0.00013698,2]
[423708484,1780323042000,-500.0,0.00013698,2]
[423708486,1780323042000,-500.0,0.00013698,2]
[423708488,1780323042000,-615.77,0.00013698,2]
[423708490,1780323042000,-615.77,0.00013698,2]
[423708492,1780323042000,-615.77,0.00013698,2]
[423708494,1780323042000,-615.77,0.00013698,2]
[423708493,1780323042000,-615.77,0.00013698,2]
[423708501,1780323042000,-544.17,0.00013698,2]
[423708489,1780323042000,-615.77,0.00013698,2]
[423708523,1780323042000,-500.0,0.00013698,2]
[423708534,1780323042000,-500.0,0.00013698,2]
[423708528,1780323042000,-500.0,0.00013698,2]
[423708561,1780323042000,-382.83023992,0.00013698,2]
[423708554,1780323042000,-500.0,0.00013698,2]
[423708564,1780323042000,-500.0,0.00013699,2]
[423708566,1780323042000,-500.0,0.00013699,2]
[423708565,1780323042000,-500.0,0.00013699,2]
[423708567,1780323042000,-500.0,0.00013699,2]
[423708568,1780323042000,-500.0,0.00013699,2]
[423708576,1780323042000,-500.0,0.00013699,2]
[423708575,1780323042000,-500.0,0.00013699,2]
[423708538,1780323042000,-500.0,0.00013698,2]
[423708573,1780323042000,-500.0,0.00013699,2]
[423708574,1780323042000,-500.0,0.00013699,2]
[423708571,1780323042000,-500.0,0.00013699,2]
[423708570,1780323042000,-500.0,0.00013699,2]
[423708577,1780323042000,-500.0,0.00013699,2]
[423708572,1780323042000,-500.0,0.00013699,2]
[423708578,1780323042000,-500.0,0.00013699,2]
[423708584,1780323042000,-500.0,0.00013699,2]
[423708583,1780323042000,-559.02731371,0.00013699,2]
[423708581,1780323042000,-500.0,0.00013699,2]
[423708586,1780323042000,-500.0,0.00013699,2]
[423708580,1780323042000,-500.0,0.00013699,2]
[423708582,1780323042000,-500.0,0.00013699,2]
[423708587,1780323042000,-500.0,0.00013699,2]
[423708588,1780323042000,-500.0,0.00013699,2]
[423708579,1780323042000,-500.0,0.00013699,2]
[423708585,1780323042000,-500.0,0.00013699,2]
[423708555,1780323042000,-500.0,0.00013698,2]
[423708558,1780323042000,-500.0,0.00013698,2]
[423708569,1780323042000,-500.0,0.00013699,2]
[423708557,1780323042000,-500.0,0.00013698,2]
[423708539,1780323042000,-500.0,0.00013698,2]
[423708527,1780323042000,-500.0,0.00013698,2]
[423708556,1780323042000,-500.0,0.00013698,2]
[423708530,1780323042000,-500.0,0.00013698,2]
[423708537,1780323042000,-500.0,0.00013698,2]
[423708533,1780323042000,-500.0,0.00013698,2]
[423708532,1780323042000,-500.0,0.00013698,2]
[423708536,1780323042000,-500.0,0.00013698,2]
[423708535,1780323042000,-500.0,0.00013698,2]
[423708531,1780323042000,-500.0,0.00013698,2]
[423708540,1780323042000,-500.0,0.00013698,2]
[423708544,1780323042000,-500.0,0.00013698,2]
[423708545,1780323042000,-500.0,0.00013698,2]
[423708529,1780323042000,-500.0,0.00013698,2]
[423708549,1780323042000,-500.0,0.00013698,2]
[423708542,1780323042000,-500.0,0.00013698,2]
[423708559,1780323042000,-500.0,0.00013698,2]
[423708553,1780323042000,-500.0,0.00013698,2]
[423708563,1780323042000,-200.0,0.00013699,2]
[423708552,1780323042000,-500.0,0.00013698,2]
[423708562,1780323042000,-166.66,0.00013699,2]
[423708551,1780323042000,-500.0,0.00013698,2]
[423708547,1780323042000,-500.0,0.00013698,2]
[423708548,1780323042000,-500.0,0.00013698,2]
[423708543,1780323042000,-500.0,0.00013698,2]
[423708546,1780323042000,-500.0,0.00013698,2]
[423708541,1780323042000,-500.0,0.00013698,2]
[423708550,1780323042000,-500.0,0.00013698,2]
[423708639,1780323043000,-560.73,0.00014087,2]
[423708629,1780323043000,-2000.0,0.00013884,2]
[423708633,1780323043000,-166.66,0.00013973,2]
[423708640,1780323043000,-500.0,0.00014087,2]
[423708636,1780323043000,-159.86,0.00014018,2]
[423708634,1780323043000,-40182.55971291,0.0001399,2]
[423708637,1780323043000,-615.77,0.00014087,2]
[423708642,1780323043000,-500.0,0.00014087,2]
[423708635,1780323043000,-250.0,0.00014,2]
[423708641,1780323043000,-500.0,0.00014087,2]
[423708646,1780323043000,-2000.0,0.00014094,2]
[423708643,1780323043000,-2000.0,0.00014094,2]
[423708645,1780323043000,-2000.0,0.00014094,2]
[423708653,1780323043000,-2000.0,0.00014094,2]
[423708655,1780323043000,-2000.0,0.00014094,2]
[423708654,1780323043000,-2000.0,0.00014094,2]
[423708644,1780323043000,-2000.0,0.00014094,2]
[423708650,1780323043000,-2000.0,0.00014094,2]
[423708631,1780323043000,-1561.72,0.00013884,2]
[423708647,1780323043000,-2000.0,0.00014094,2]
[423708648,1780323043000,-2000.0,0.00014094,2]
[423708638,1780323043000,-544.17,0.00014087,2]
[423708624,1780323043000,-2000.0,0.00013861,2]
[423708651,1780323043000,-2000.0,0.00014094,2]
[423708626,1780323043000,-548.12,0.00013861,2]
[423708589,1780323043000,-500.0,0.00013699,2]
[423708591,1780323043000,-500.0,0.00013699,2]
[423708601,1780323043000,-500.0,0.00013699,2]
[423708602,1780323043000,-500.0,0.00013699,2]
[423708603,1780323043000,-500.0,0.00013699,2]
[423708605,1780323043000,-500.0,0.00013699,2]
[423708594,1780323043000,-500.0,0.00013699,2]
[423708590,1780323043000,-500.0,0.00013699,2]
[423708593,1780323043000,-500.0,0.00013699,2]
[423708598,1780323043000,-500.0,0.00013699,2]
[423708599,1780323043000,-500.0,0.00013699,2]
[423708600,1780323043000,-500.0,0.00013699,2]
[423708596,1780323043000,-500.0,0.00013699,2]
[423708607,1780323043000,-500.0,0.00013699,2]